Cogmind - Beta 15 @@@ ROGUE MODE // 2025.06.03 @ 21:44:03 Player: HSFM Result: Destroyed by YI-UF0 with YI-UF0's Doublenader Performance ------------- Evolutions (0) 0 Regions Visited (2) 400 Robots Destroyed (24) 120 Value Destroyed (662) 662 Prototype IDs (0) 0 Alien Tech Used (0) 0 Bonus (0) 0 TOTAL SCORE: 1182 Bonus ------- None Cogmind --------- Core Integrity 0/250 Matter 296/300 Energy 160/160 System Corruption 0% Temperature Cool (36) Movement Walking (120) Location -10/Mines Parts ------- > --- POWER (1) -------- Light Nuclear Core > --- PROPULSION (2) --- Aluminum Leg Aluminum Leg > --- UTILITY (2) ------ Small Storage Unit Signal Interpreter > --- WEAPON (2) ------- Beam Cannon Light Cannon > --- INVENTORY (8) ---- Aluminum Leg Improved Heat Sink High-capacity Storage Unit High-capacity Battery (250) Improved Terrain Scanner Seismic Detector Targeting Computer Power Shielding Peak State ------------ > --- POWER ------------ Light Nuclear Core > --- PROPULSION ------- Aluminum Leg Aluminum Leg > --- UTILITY ---------- Small Storage Unit Signal Interpreter > --- WEAPON ----------- Beam Cannon Light Cannon > --- INVENTORY -------- Aluminum Leg Improved Heat Sink High-capacity Storage Unit High-capacity Battery Improved Terrain Scanner Seismic Detector Targeting Computer Power Shielding [Rating: 10] Favorites ----------- Power Ion Engine Engine Ion Engine Power Core Light Nuclear Core Propulsion Aluminum Leg Leg Aluminum Leg Utility Small Storage Unit Device Improved Terrain Scanner Storage Small Storage Unit Processor Signal Interpreter Weapon EM Pulse Gun Energy Gun EM Pulse Gun Energy Cannon Beam Cannon Ballistic Cannon Light Cannon Build | -11 -10 -10 ------- Run | Yrd Mat Min Slots Evolved . | . . . Power . | . . . Propulsion . | . . . Utility . | . . . Weapon . | . . . Parts Attached 15 | 8 4 3 Power 2 | 1 . 1 Engine 1 | 1 . . Core 1 | . . 1 Reactor . | . . . Propulsion 5 | 2 2 1 Treads . | . . . Leg 5 | 2 2 1 Wheel . | . . . Hover . | . . . Flight . | . . . Utility 4 | 3 1 . Device 2 | 2 . . Storage 1 | 1 . . Processor 1 | . 1 . Hackware . | . . . Protection . | . . . Artifact . | . . . Weapon 4 | 2 1 1 Energy Gun 2 | 2 . . Energy Cannon 1 | . 1 . Ballistic Gun . | . . . Ballistic Cannon 1 | . . 1 Launcher . | . . . Special Weapon . | . . . Impact Weapon . | . . . Slashing Weapon . | . . . Piercing Weapon . | . . . Special Melee Weapon . | . . . Unidentified Prototypes . | . . . Parts Lost 3 | . 2 1 Power . | . . . Propulsion 1 | . 1 . Utility . | . . . Weapon 2 | . 1 1 Highest Loss Streak 1 | . 1 1 To Critical Strikes . | . . . Average Backups 6 | . 6 8 Power . | . . . Propulsion . | . . 1 Utility 4 | . 4 6 Weapon . | . . . Tool/Special . | . . . Unused Backups 9 | . 2 7 Power 1 | . . 1 Propulsion 1 | . . 1 Utility 6 | . 1 5 Weapon 1 | . 1 . Tool/Special . | . . . Average Slot Usage (%) 97 | . 98 96 Engine 11 | . 14 7 Core 2 | . . 6 Leg 27 | . 27 28 Device 4 | . 7 . Storage 14 | . 14 14 Processor 9 | . 6 14 Energy Gun 16 | . 24 7 Energy Cannon 8 | . 3 14 Ballistic Cannon 1 | . . 3 Peak Build Rating 10 | 9 9 10 Average Rating 8 | 5 8 8 On Entrance 5 | . 9 8 Naked Turns . | . . . Heaviest Build 16 | 15 15 16 Greatest Support 20 | 20 20 20 Greatest Overweight (x) 4 | 4 1 . Average Overweight (x) . | . . . Largest Inventory Capacity 8 | 8 8 8 Average Capacity 7 | 7 8 8 Most Carried 8 | 2 8 8 Average Carried 6 | . 6 7 Final Capacity 8 | 8 8 8 Final Carried 8 | 2 8 8 Class Distribution -------------------- 100% | Mutant Dominant Class ---------------- Mutant | -10/Materials Mutant | -10/Mines Resources | -11 -10 -10 ----------- Run | Yrd Mat Min Matter Collected 355 | 253 72 30 Remotely . | . . . Salvage Created 909 | 65 652 192 Parts 59 | 12 37 10 Haulers Intercepted 1 | . 1 . Recyclers Shooed 1 | . . 1 Parts Field Recycled . | . . . Retrieved Matter . | . . . Parts Self-Destructed . | . . . Prevented . | . . . Kills | -11 -10 -10 ------- Run | Yrd Mat Min Combat Hostiles Destroyed 15 | . 11 4 Melee 1 | . . 1 Guns 8 | . 7 1 Cannons 2 | . . 2 AOE 3 | . 3 . Classes Destroyed 5 | 1 4 . Builder 1 | . 1 . Tunneler 5 | 4 1 . Hauler 1 | . 1 . Watcher 2 | . 2 . Grunt 15 | . 11 4 Best Kill Streak 5 | 4 5 1 Combat Bots Only 3 | . 3 1 Max Kills in Single Turn 3 | 3 2 1 Gunslinging . | . . . Exploded 2 | . 2 . Melee 1 | . . 1 Uniques/NPCs Destroyed . | . . . Combat | -11 -10 -10 -------- Run | Yrd Mat Min Hostile Shots Fired 75 | . 39 36 Missed 19 | . 9 10 Hits 56 | . 30 26 Projectile 56 | . 30 26 AOE 8 | . . 8 Damage Taken 972 | 38 437 497 Core 252 | 19 87 146 Absorbed by Shields . | . . . Regen/Repaired (Parts) 42 | . 42 . Core Remaining (%) 92 | 92 . . Volleys Fired 61 | 2 38 21 Largest 2 | 2 2 2 Hottest 100 | 80 100 100 Shots Fired 108 | 4 76 28 Gun 82 | 4 72 6 Cannon 26 | . 4 22 Launcher . | . . . Special . | . . . Kinetic 1 | . . 1 Thermal 25 | . 4 21 Explosive . | . . . Electromagnetic 82 | 4 72 6 Robot Hit Streak 9 | 1 9 9 Robot Miss Streak 3 | 1 3 2 Penetration Max . | . . . Secondary Targets . | . . . Shots Hit Robots 67 | 2 43 22 Core Hits 41 | 5 26 10 Critical Kills . | . . . Critical Parts Destroyed . | . . . Critical Strikes . | . . . Melee Attacks . | . . . Impact . | . . . Slashing . | . . . Piercing . | . . . Sneak Attacks . | . . . Combat Hostiles . | . . . Follow-up Attacks . | . . . Damage Inflicted 1399 | 135 892 372 Guns 670 | 27 563 80 Cannons 338 | . 54 284 Explosions 380 | 108 272 . Melee . | . . . Ramming 11 | . 3 8 Kinetic 18 | . . 18 Thermal 700 | 108 326 266 Explosive . | . . . Electromagnetic 670 | 27 563 80 Impact . | . . . Slashing . | . . . Piercing . | . . . Highest Corruption . | . . . Average Corruption . | . . . Corruption Purged . | . . . Corruption Blocked . | . . . Overload Shots . | . . . Overflow Damage . | . . . Projectiles . | . . . Explosions . | . . . Melee . | . . . Knockbacks . | . . . Impact . | . . . Kinetic . | . . . Secondary . | . . . Self-Inflicted Damage 104 | 39 65 . Shots 3 | 1 2 . Rammed . | . . . Targets Rammed 8 | . 1 7 Kicked 8 | . 1 7 Crushed . | . . . Highest Temperature 291 | 30 228 291 Average Temperature 86 | 17 68 127 Received Heat Transfer 366 | . 216 150 Effects 2 | . . 2 Energy Bleed 2 | . . 2 Siege Activations . | . . . Martial Activations . | . . . Shielding Activations . | . . . Robots Disrupted . | . . . Combat Hostiles . | . . . Robots Corrupted 1 | . 1 . Combat Hostiles 1 | . 1 . Parts Fried 2 | . 2 . Impact Corruptions . | . . . Robots Melted . | . . . Combat Hostiles . | . . . Parts Melted 1 | . 1 . Heat Transferred 1216 | 250 411 555 Parts Sabotaged . | . . . Parts Stolen . | . . . Parts Stripped . | . . . Power Chain Reactions 5 | 1 4 . Alert | -11 -10 -10 ------- Run | Yrd Mat Min Maximum Alert Level . | . . . Low Security (%) 100 | 100 100 100 Level 1 . | . . . Level 2 . | . . . Level 3 . | . . . Level 4 . | . . . Level 5 . | . . . High Security . | . . . Max Security . | . . . Peak Influence 124 | 15 124 40 Initial . | . . . Average 29 | 3 52 6 Influence Increases 439 | 20 319 100 Destroy 0b10 Robot/C 300 | . 220 80 Destroy 0b10 Robot/NC 45 | 20 25 . Destroy Leader 76 | . 56 20 Successful Hack 4 | . 4 . Destroy Structure 14 | . 14 . Influence Decreases 439 | 20 319 100 Time Decay 419 | 20 299 100 Lost Part 20 | . 20 . Squads Dispatched 1 | . 1 . Investigation 1 | . 1 . Extermination . | . . . Reinforcement . | . . . Assault . | . . . Garrison . | . . . Intercept . | . . . Searches Triggered . | . . . Construction Impeded . | . . . Haulers Reinforced . | . . . Active Scanning Responses . | . . . Cargo Convoy Interrupts . | . . . Stealth | -11 -10 -10 --------- Run | Yrd Mat Min Distress Signals 1 | . 1 . Communications Jammed . | . . . Distress Signals . | . . . Times Spotted 20 | . 14 6 Peak Tracking Total 3 | . 3 2 Tactical Retreats 1 | . . 1 Traps | -11 -10 -10 ------- Run | Yrd Mat Min Traps Triggered 1 | . 1 . Indirectly . | . . . Trap Hack Attempts . | . . . Triggered . | . . . Disarmed . | . . . Reprogrammed . | . . . Reused . | . . . Traps Extracted . | . . . Installed . | . . . Triggered . | . . . Machines | -11 -10 -10 ---------- Run | Yrd Mat Min Machines Disabled . | . . . Max in Single Turn . | . . . Machines Repaired . | . . . Machines Dismantled . | . . . Machines Sabotaged . | . . . Overloaded Fab Kills . | . . . Hacking | -11 -10 -10 --------- Run | Yrd Mat Min Machines Accessed 6 | . 6 . Terminals 3 | . 3 . Fabricators . | . . . Repair Stations 1 | . 1 . Recycling Units 2 | . 2 . Scanalyzers . | . . . Garrison Access . | . . . Total Hacks 17 | . 17 . Successful 9 | . 9 . Failed 8 | . 8 . Catastrophic 2 | . 2 . Database Lockouts . | . . . Manual . | . . . Terminals 11 | . 11 . Fabricators . | . . . Repair Stations 3 | . 3 . Recycling Units 3 | . 3 . Scanalyzers . | . . . Garrison Access . | . . . Terminal Hacks 3 | . 3 . Record 3 | . 3 . Fabricator Hacks . | . . . Repair Station Hacks 3 | . 3 . Scan Component 2 | . 2 . Repair 1 | . 1 . Recycling Unit Hacks 3 | . 3 . Report Inventory 2 | . 2 . Retrieve Components 1 | . 1 . Scanalyzer . | . . . Garrison Access Hacks . | . . . Unauthorized Hacks . | . . . Terminals . | . . . Fabricators . | . . . Repair Stations . | . . . Recycling Units . | . . . Scanalyzers . | . . . Garrison Access . | . . . Data Cores Recovered . | . . . Used . | . . . Hacking Detections 5 | . 5 . Full Trace Events . | . . . Feedback Events . | . . . Feedback Blocked . | . . . Robot Schematics Acquired . | . . . Robots Built . | . . . Authchips . | . . . Time . | . . . Total Robot Build Rating . | . . . Part Schematics Acquired . | . . . Parts Built . | . . . Authchips . | . . . Time . | . . . Total Part Build Rating . | . . . Parts Repaired 1 | . 1 . Time 26 | . 26 . Parts Recycled . | . . . Recycled Matter . | . . . Retrieved Matter . | . . . Retrieved Components 6 | . 6 . Parts Scanalyzed . | . . . Part Schematics Acquired . | . . . Parts Damaged . | . . . Bothacking | -11 -10 -10 ------------ Run | Yrd Mat Min Used RIF Installer . | . . . Robots Hacked . | . . . Non-combat . | . . . Combat . | . . . Robot Hacks Applied . | . . . Relay Couplers Released . | . . . Fabnet Peak Effective % . | . . . Robots Rewired . | . . . Allies Hacked . | . . . Hacks Repelled . | . . . Allies | -11 -10 -10 -------- Run | Yrd Mat Min Total Allies . | . . . Largest Group . | . . . Highest-Rated Group . | . . . Highest-Rated Ally . | . . . Total Orders . | . . . Ally Attacks . | . . . Total Damage . | . . . Kills . | . . . Allies Corrupted . | . . . Allies Melted . | . . . Intel | -11 -10 -10 ------- Run | Yrd Mat Min Active Infowar (turns) 475 | 30 445 . Terrain 455 | 10 445 . Seismic 20 | 20 . . Robot Analysis Total . | . . . Derelict Logs Recovered 1 | . . 1 Drone Launches . | . . . Drone Recoveries . | . . . Exploration | -11 -10 -10 ------------- Run | Yrd Mat Min Turns Passed 1558 | 86 804 668 Spaces Moved 1077 | 52 525 500 Core 10 | 10 . . Treads . | . . . Legs 1067 | 42 525 500 Wheels . | . . . Hover . | . . . Flight . | . . . Fastest Speed 50 | 50 120 120 Average Speed 120 | 128 121 120 Slowest Speed 250 | 250 190 120 Overloaded Moves . | . . . Propulsion Burnouts . | . . . Robots Hopped . | . . . Potential Cave-ins . | . . . Cave-ins Triggered . | . . . Exploration Rate (%) 45 | 4 74 57 Regions Visited 2 Branch Regions 1 Pre-discovered Areas 1 | . . 1 Known Exits Taken 1 | . 1 . Unknown Exits Taken 1 | 1 . . Scrap Searched 1 | . . 1 Spaces Dug . | . . . Terrain Destroyed 15 | 2 13 . Melee . | . . . Projectile . | . . . AOE 15 | 2 13 . Terrain Rammed . | . . . Walls Destroyed . | . . . Machines Disabled . | . . . Actions | -11 -10 -10 --------- Run | Yrd Mat Min Total 1219 | 63 617 539 Wait 38 | . 35 3 Move 1075 | 51 524 500 Hop . | . . . Pick Up 15 | 2 11 2 Fast Attach 9 | 7 1 1 Attach 2 | . 2 . Detach . | . . . Swap 5 | 1 2 2 Drop 6 | . 3 3 Fire 61 | 2 38 21 Melee . | . . . Ram . | . . . Kick 8 | . 1 7 Crush . | . . . Escape Stasis . | . . . Rewire . | . . . Trap . | . . . Miscellaneous . | . . . Route ------- -11/Scrapyard -10/Materials (discovered 3 exits: *Mat / *Min x2) -10/Mines (discovered 2 exits: *Mat / *Sub) History --------- Turn | Location | Event 13 | -11/Scrapyard | Discovered new exit (range 15) 87 | -11/Scrapyard | Entered Materials 179 | -10/Materials | Discovered new exit (range 9) 307 | -10/Materials | Build established: Mutant 439 | -10/Materials | Discovered new exit (range 11) 455 | -10/Materials | Discovered new exit (range 13) 536 | -10/Materials | Identified exit to Mines 551 | -10/Materials | Identified exit to Materials 679 | -10/Materials | Repaired EM Pulse Gun 891 | -10/Materials | Entered Mines 974 | -10/Mines | Learned location of Storage (-8) 984 | -10/Mines | Learned location of 1 exit from Materials 993 | -10/Mines | Core integrity fell below 50% 1089 | -10/Mines | Discovered exit to Materials (range 6) 1168 | -10/Mines | Discovered new exit (range 6) 1173 | -10/Mines | Identified exit to Subcaves 1540 | -10/Mines | Core integrity fell below 20% 1559 | -10/Mines | Destroyed by YI-UF0 with YI-UF0's Doublenader Last Messages --------------- G-34 Mercenary destroyed. Dropped Ion Engine. Dropped Corrupted Lgt. Nuclear Core. Acquired 10 matter. Acquired Imp. Heat Sink. Dropped Aluminum Leg. Acquired Aluminum Leg. K-01 Serf collects debris. Searching scrap... Found Lgt. Ion Engine. Found Wheel. Found Lgt. Cannon. Found 31 Matter. Acquired 10 matter. Acquired Lgt. Cannon. Acquired 10 matter. Kicked T-07 Excavator out of the way. The unstable cave ceiling collapses. T-07 Excavator destroyed. The unstable cave ceiling collapses. Map ----- +----------------------------------------------------+ | ??????# ##??????#*#????????????????? | | ??????# ##?????#%#????????????????? | | ??????## #?????# #????????????????? | | ???????## ##?????#=#????????????????? | | ????????## ## ######## #????????????????? | | ?????????###?# #????????????????? | | ?????????????# ##########????????????????? | | ?????????????# #?????????????????????????? | | ??????###???## ##????????????????????????? | | ?????##>##### ##???????????????????????? | | ?????# # ##??????????????????????? | | ?????# + #??????????????????????? | | ?????# + ##?????????????????????? | | ?????# ## #####?????????????????? | | ?????######### ##????????????????? | | ???????????### ##???????????????? | | ???????????# #???????????????? | | ???????????# #???????????????? | | ???????????# ##??????????????? | | ???????????## % ###????????????? | | ????????????## g ##???????????? | | ?????????????## #####?####### | | ?????????????## ### # | | ?????????????# ### ## | | ?????????????# # ##?# #?# | | ??????????????# @ % #??# #??# | | ??????????????# # #?# #???# # | | ??????????????# ## #???# ### | | ??????????????# % # ##### #?? | | ??????????????### # #?? | | ????????????????# ### ## #?? | | ????????????????# # # # ##?# ##%#?? | | ????????????????# # ### ##%#?# | | ????????????????# # ? ##%## | | ????????????????# ##? ? %% | | ????????????????### #####????## ==* | | ???????????????????# #?????????#### | | ????????????????#### ####????????### ## """ | | ???????????????## ##???????# """ | | ???????????????# < ##??????# """ | | ???????????????# #??????# ### | | ????#########??## #??????# #?# | | ????# #???#### # #??????# #?## # | | ????# #??????# ## ##??????# #???### | | ????# ! #??????# #?###???????# #?????? | | ????# ! ! #??????# #???????????# #####?? | | ????# ! ! ######## #???????????# ## ##? | | ????# ! #??????????## ## | | ????# ##########??????????# | | ????# #??????????????????# ## | +----------------------------------------------------+ Best States ------------- Heat Dissipation 25 Energy Generation 14 Energy Capacity 250 Matter Stores 300 Matter Capacity 300 Sight Range 16 Terrain Scan Range 16 Terrain Scan Density 10 Evasion (%) 55 Item Schematics ----------------- None Robot Schematics ------------------ None Fabricated ------------ Nothing Repaired ---------- EM Pulse Gun | 6% | -10/Materials Alien Tech Used ----------------- None Achievements -------------- Power Corrupts Challenges ------------ None Game ------ Seed BiocellScatterCarapace Manual? 0 Play Time 00:21:43 Cumulative 4.1 hours Start 2025.06.03 @ 21:25:06 End 2025.06.03 @ 21:44:03 Sessions 1 Manual Loads 0 Difficulty Rogue Special Mode None Game No. 5 Rogue 5 Adventurer 0 Explorer 0 Win Type - Total 0 Types 0/0/0/0/0/0/0/0/0/0 Lore% 3 Gallery% 5 Achievement% 9 Wizard Run 0 Options --------- Layout 0 ASCII 0 Keyboard 0 Movement Mouse Keybinds 0 Fullscreen 1 Font 18/SmallcapsGlow Map View 76x50 Zoom Use 0% Tactical HUD 0 Map Filters NONE Filters NONE Steam 1 RUN: cf470338-46e7-4daf-a58c-6d2ced725bc2